bitfinex/quotes_BTCUSD_20251116
["timestamp","ask_amount","ask_price","bid_price","bid_amount"]
[1763288666696,0.11966996,96630.0,96626.0,0.20698219]
[1763288666697,0.15075915,96630.0,96626.0,0.20698219]
[1763288666837,0.08292,96627.0,96626.0,0.25698219]
[1763288668488,0.08292,96627.0,96626.0,0.05]
[1763288677214,0.08292,96627.0,96626.0,0.25698362]
[1763288677428,0.10223427,96627.0,96626.0,0.25698362]
[1763288678773,0.10223427,96627.0,96626.0,0.07918863]
[1763288678976,0.10223427,96627.0,96626.0,0.05]
[1763288681927,0.30921575,96627.0,96626.0,0.05]
[1763288684878,0.20700076,96618.0,96617.0,0.14881783]
[1763288685073,0.20700505,96616.0,96615.0,0.17247996]
[1763288685274,0.22631932,96616.0,96615.0,0.17247996]
[1763288686016,0.01931427,96616.0,96615.0,0.17247996]
[1763288686416,0.01931427,96616.0,96615.0,0.22129779]
[1763288686735,0.01931427,96616.0,96615.0,0.29125274]
[1763288686888,0.01931427,96616.0,96615.0,0.27055203]
[1763288687632,0.01931427,96616.0,96615.0,0.27155203]
[1763288688017,0.01931427,96616.0,96615.0,0.47855922]
[1763288688991,0.01931427,96616.0,96615.0,0.27155203]
[1763288689974,0.01931427,96616.0,96615.0,0.1727342]
[1763288690104,0.01931427,96616.0,96615.0,0.051]
[1763288691110,0.01931427,96616.0,96615.0,0.05]
[1763288691728,0.22631932,96616.0,96615.0,0.051]
[1763288695285,0.01931427,96616.0,96615.0,0.051]
[1763288696702,0.01931427,96616.0,96615.0,0.25800719]
[1763288699694,0.01931427,96616.0,96615.0,0.051]
[1763288703324,0.01941031,96616.0,96615.0,0.001]
[1763288703532,0.01941031,96616.0,96615.0,0.051]
[1763288703746,0.01941031,96616.0,96615.0,0.25800719]
[1763288704334,0.01941031,96621.0,96620.0,0.05]
[1763288704540,0.01941062,96621.0,96620.0,0.05]
[1763288705312,0.01941062,96623.0,96620.0,0.05]
[1763288705594,0.01941062,96622.0,96621.0,0.05]
[1763288706337,0.28986965,96624.0,96618.0,0.20699887]
[1763288706565,0.01941258,96623.0,96622.0,0.05]
[1763288707055,0.08288,96623.0,96622.0,0.05]
[1763288709140,0.08288,96623.0,96622.0,0.051]
[1763288710207,0.08288,96623.0,96622.0,0.25799219]
[1763288713564,0.08288,96623.0,96622.0,0.051]
[1763288713979,0.08288,96623.0,96622.0,0.25799219]
[1763288717328,0.00013549,96630.0,96622.0,0.25799219]
[1763288717499,0.00013549,96630.0,96629.0,0.2569772]
[1763288720822,0.00013549,96630.0,96629.0,0.7017114]
[1763288721912,0.00013549,96630.0,96629.0,0.7027114]
[1763288722349,0.00013549,96630.0,96629.0,0.7017114]
[1763288722477,0.00013549,96630.0,96629.0,0.7037114]
[1763288740022,0.00013549,96630.0,96629.0,0.1737342]
[1763288740227,0.00013549,96630.0,96629.0,0.1217342]
[1763288740444,0.00013549,96630.0,96629.0,0.1737342]
[1763288740644,0.00013549,96630.0,96629.0,0.052]
[1763288740879,0.00013549,96630.0,96629.0,0.051]
[1763288741079,0.00013549,96630.0,96629.0,0.052]
[1763288741279,0.00013549,96630.0,96629.0,0.051]
[1763288741582,0.01556549,96630.0,96629.0,0.051]
[1763288741986,0.01556549,96630.0,96629.0,0.05]
[1763288742366,0.01556549,96630.0,96629.0,0.051]
[1763288742744,0.01556549,96630.0,96629.0,0.05]
[1763288742945,0.33856549,96630.0,96629.0,0.05]
[1763288743149,0.35795257,96630.0,96629.0,0.05]
[1763288744750,0.20700249,96618.0,96617.0,0.05]
[1763288746703,0.21895567,96626.0,96601.0,0.02070371]
[1763288746876,0.20698567,96626.0,96625.0,0.05]
[1763288747218,0.28986567,96626.0,96625.0,0.05]
[1763288748574,0.00013549,96630.0,96629.0,0.05]
[1763288749112,0.00013549,96630.0,96629.0,0.07069772]
[1763288750441,0.00013549,96630.0,96629.0,0.05]
[1763288751909,0.00013549,96630.0,96629.0,0.07069772]
[1763288752303,0.00013549,96630.0,96629.0,0.05]
[1763288759358,0.00013549,96630.0,96629.0,0.2569772]
[1763288761672,0.00013549,96630.0,96629.0,0.05]
[1763288761882,0.00013549,96630.0,96629.0,0.2569772]
[1763288770457,0.20711264,96630.0,96607.0,0.323]
[1763288770661,0.20711264,96630.0,96600.0,0.12916977]
[1763288770662,0.00013549,96630.0,96629.0,0.05]
[1763288770812,0.20711054,96630.0,96629.0,0.05]
[1763288771018,0.00013549,96630.0,96629.0,0.05]
[1763288771626,0.00013549,96630.0,96629.0,0.051]
[1763288772702,0.00013549,96630.0,96629.0,0.05]
[1763288773109,0.00013549,96630.0,96629.0,0.051]
[1763288782893,0.00013549,96630.0,96629.0,0.2579772]
[1763288789686,0.00013549,96630.0,96629.0,0.051]
[1763288798660,0.00013549,96630.0,96629.0,0.2579772]
[1763288801248,0.00013549,96630.0,96629.0,0.051]
[1763288803550,0.00013549,96630.0,96629.0,0.2579772]
[1763288804682,0.00013549,96630.0,96629.0,0.10660472]
[1763288810599,0.00013549,96630.0,96629.0,0.05]
[1763288810952,0.00013549,96630.0,96629.0,0.2569772]
[1763288824940,0.00013549,96630.0,96629.0,0.05]
[1763288825769,0.2069772,96629.0,96618.0,0.20699863]
[1763288825927,0.20698135,96628.0,96627.0,0.05]
[1763288829305,0.23819944,96630.0,96629.0,0.05]
[1763288832851,0.03122439,96630.0,96629.0,0.05]
[1763288833030,0.11410439,96630.0,96629.0,0.05]
[1763288833443,0.32107944,96630.0,96629.0,0.05]
[1763288834255,0.11410439,96630.0,96629.0,0.05]
[1763288840148,0.11410439,96630.0,96629.0,0.2569772]
[1763288840603,0.11410439,96630.0,96629.0,0.05]
[1763288841249,0.00013549,96630.0,96629.0,0.05]
[1763288843325,0.00013549,96630.0,96613.0,0.323]
[1763288843570,0.00013549,96630.0,96629.0,0.05]
[1763288843974,0.00013549,96630.0,96629.0,0.051]
[1763288844171,0.00013549,96630.0,96629.0,0.05]
[1763288844512,0.00013549,96630.0,96629.0,0.051]
[1763288844670,0.00013549,96630.0,96629.0,0.05]
[1763288845308,0.08301549,96630.0,96629.0,0.05]
[1763288845489,0.08301549,96630.0,96629.0,0.2569772]
[1763288845696,0.08301549,96630.0,96629.0,0.05]
[1763288846468,0.08301549,96630.0,96629.0,0.2569772]
[1763288848682,0.08301549,96630.0,96629.0,0.05]
[1763288851031,0.08301549,96630.0,96629.0,0.2569772]
[1763288852028,0.08301549,96630.0,96629.0,0.05]
[1763288852609,0.08301549,96630.0,96629.0,0.2569772]
[1763288853845,0.08301549,96630.0,96629.0,0.05]
[1763288859264,0.00013549,96630.0,96629.0,0.05]
[1763288860308,0.00013549,96630.0,96629.0,0.07069772]
[1763288861154,0.00013549,96630.0,96629.0,0.07169772]
[1763288861385,0.00013549,96630.0,96629.0,0.07269772]
[1763288864424,0.00013549,96630.0,96629.0,0.07169772]
[1763288865045,0.00013549,96630.0,96629.0,0.07269772]
[1763288865250,0.00013549,96630.0,96629.0,0.052]
[1763288865458,0.00013549,96630.0,96629.0,0.2589772]
[1763288865829,0.00013549,96630.0,96629.0,0.052]
[1763288866669,0.00013549,96630.0,96629.0,0.051]
[1763288867102,0.00013549,96630.0,96629.0,0.05]
[1763288867328,0.04714291,96630.0,96629.0,0.05]
[1763288867537,0.04714291,96630.0,96600.0,0.02035195]
[1763288867538,0.01034982,96620.0,96590.0,0.01035303]
[1763288867750,0.02569982,96620.0,96590.0,0.01035303]
[1763288867955,0.20702177,96609.0,96590.0,0.08927436]
[1763288868161,0.20702177,96609.0,96608.0,0.05]
[1763288868367,0.01244,96611.0,96609.0,0.05]
[1763288868621,0.01244,96611.0,96610.0,0.05]
[1763288869009,0.04353502,96611.0,96610.0,0.05]
[1763288869387,0.01244,96611.0,96610.0,0.05]
[1763288871099,0.09532,96611.0,96610.0,0.05]
[1763288873141,0.11067,96611.0,96610.0,0.05]
[1763288877203,0.14176725,96611.0,96610.0,0.05]
[1763288882408,0.01035089,96610.0,96583.0,0.20707473]
[1763288882604,0.20706226,96590.0,96589.0,0.05]
[1763288883337,0.01156,96598.0,96597.0,0.05]
[1763288883479,0.21860384,96598.0,96597.0,0.05]
[1763288883715,0.21873925,96598.0,96597.0,0.05]
[1763288884483,0.26582824,96598.0,96597.0,0.05]
[1763288886907,0.20708478,96579.0,96578.0,0.05]
[1763288888159,0.20710695,96569.0,96567.0,0.09881783]
[1763288888369,0.20710695,96569.0,96568.0,0.05]
[1763288889443,0.20710695,96569.0,96568.0,0.05045164]
[1763288889653,0.20710695,96569.0,96568.0,0.05145164]
[1763288889868,0.20710695,96569.0,96568.0,0.05245164]
[1763288890072,0.20710151,96571.0,96570.0,0.05]
[1763288891382,0.20710151,96571.0,96570.0,0.051]
[1763288893501,0.0311074,96579.0,96570.0,0.001]
[1763288893719,0.0311074,96579.0,96578.0,0.05]
[1763288894024,0.05043479,96579.0,96578.0,0.05]
[1763288894431,0.13335479,96579.0,96578.0,0.05]
[1763288899719,0.05043479,96579.0,96578.0,0.05]
[1763288899926,0.10224739,96579.0,96578.0,0.2570865]
[1763288900604,0.10224739,96579.0,96578.0,0.05]
[1763288900829,0.10224739,96579.0,96568.0,0.00045164]
[1763288900830,0.20709206,96576.0,96569.0,0.20710396]
[1763288901031,0.20709206,96576.0,96575.0,0.14881783]
[1763288901257,0.22644008,96576.0,96575.0,0.14881783]
[1763288901659,0.01934802,96576.0,96575.0,0.14881783]
[1763288905222,0.20710903,96568.0,96565.0,0.09881783]
[1763288905407,0.01934802,96567.0,96566.0,0.07071122]
[1763288907671,0.10226802,96567.0,96566.0,0.07171122]
[1763288907906,0.10226802,96567.0,96566.0,0.07271122]
[1763288909255,0.01934802,96567.0,96566.0,0.07271122]
[1763288909507,0.10226802,96567.0,96566.0,0.07271122]
[1763288914619,0.10226802,96567.0,96566.0,0.002]
[1763288914864,0.10226802,96567.0,96566.0,0.052]
[1763288915069,0.10226802,96567.0,96566.0,0.17152905]
[1763288920594,0.01934802,96567.0,96566.0,0.17152905]
[1763288920720,0.10226802,96567.0,96566.0,0.17152905]
[1763288924328,0.10226802,96567.0,96566.0,0.15081783]
[1763288924524,0.10226802,96567.0,96566.0,0.17152905]
[1763288925470,0.08292,96567.0,96566.0,0.17152905]
[1763288925807,0.08292,96567.0,96566.0,0.15081783]
[1763288926428,0.08292,96567.0,96566.0,0.17152905]
[1763288927823,0.2900296,96568.0,96567.0,0.05]
[1763288928023,0.2900296,96568.0,96567.0,0.070711]
[1763288929016,0.2071096,96568.0,96567.0,0.071711]
[1763288929219,0.2900296,96568.0,96567.0,0.071711]
[1763288929713,0.2900296,96568.0,96567.0,0.072711]
[1763288930642,0.15072181,96580.0,96567.0,0.072711]
[1763288930643,0.01035303,96590.0,96567.0,0.022711]
[1763288930842,0.20707191,96585.0,96584.0,0.05]
[1763288931142,0.22651244,96585.0,96584.0,0.05]
[1763288931783,0.01944053,96585.0,96584.0,0.05]
[1763288931964,0.20707344,96585.0,96579.0,0.20708247]
[1763288932171,0.20707344,96585.0,96584.0,0.05]
[1763288932364,0.0194359,96585.0,96584.0,0.05]
[1763288932563,0.08292,96585.0,96584.0,0.05]
[1763288933205,0.18676499,96586.0,96579.0,0.20708235]
[1763288933350,0.18676499,96586.0,96585.0,0.0497]
[1763288933549,0.20619592,96586.0,96585.0,0.0497]
[1763288933976,0.01943093,96586.0,96585.0,0.0497]
[1763288934181,0.20705359,96594.0,96587.0,0.20706633]
[1763288934402,0.03110379,96592.0,96591.0,0.0497]
[1763288934722,0.05053042,96592.0,96591.0,0.0497]
[1763288934956,0.23816027,96592.0,96591.0,0.0497]
[1763288935203,0.20705648,96592.0,96591.0,0.0497]
[1763288935396,0.00045164,96594.0,96593.0,0.0497]
[1763288936067,0.02116255,96594.0,96593.0,0.0497]
[1763288936257,0.2282166,96594.0,96593.0,0.0497]
[1763288936674,0.02116255,96594.0,96593.0,0.0497]
[1763288936883,0.22821474,96594.0,96593.0,0.0497]
[1763288937533,0.02116255,96594.0,96593.0,0.0497]
[1763288937834,0.22821474,96594.0,96593.0,0.0497]
[1763288937973,0.02116255,96594.0,96593.0,0.0497]
[1763288938186,0.22821474,96594.0,96593.0,0.0497]
[1763288939063,0.02116255,96594.0,96593.0,0.0497]
[1763288939278,0.20750383,96594.0,96593.0,0.0497]
[1763288940147,0.00045164,96594.0,96593.0,0.0497]
[1763288940308,0.00045164,96594.0,96593.0,0.25675434]
[1763288941498,0.00045164,96594.0,96593.0,0.0497]
[1763288942121,0.00045164,96594.0,96560.0,0.02035624]
[1763288942122,0.03640255,96594.0,96563.0,0.20711696]
[1763288942371,0.03640255,96594.0,96560.0,0.01035625]
[1763288942372,0.20708435,96579.0,96561.0,0.323]
[1763288942570,0.11961547,96580.0,96571.0,0.20710138]
[1763288942801,0.13095547,96580.0,96579.0,0.0497]
[1763288943003,0.21842435,96580.0,96560.0,0.20712507]
[1763288943158,0.45765529,96580.0,96579.0,0.0497]
[1763288943363,0.21842435,96580.0,96579.0,0.0497]
[1763288943571,0.23366435,96580.0,96579.0,0.0497]
[1763288945020,0.21842435,96580.0,96579.0,0.0497]
[1763288945223,0.21842221,96580.0,96579.0,0.0497]
[1763288945814,0.23818201,96583.0,96579.0,0.0497]
[1763288946016,0.23818182,96583.0,96582.0,0.0497]
[1763288947079,0.03110605,96583.0,96582.0,0.0497]
[1763288947956,0.20706598,96588.0,96585.0,0.0497]
[1763288947957,0.20707114,96586.0,96585.0,0.0497]
[1763288948824,0.23817716,96586.0,96585.0,0.0497]
[1763288949206,0.25341716,96586.0,96585.0,0.0497]
[1763288956070,0.25341716,96586.0,96566.0,0.09881783]
[1763288956071,0.20710751,96569.0,96568.0,0.0497]
[1763288957208,0.20710751,96569.0,96568.0,0.0507]
[1763288957408,0.20710751,96569.0,96568.0,0.0517]
[1763288962425,0.01189,96570.0,96569.0,0.0497]
[1763288962848,0.20709983,96572.0,96571.0,0.0497]
[1763288963058,0.01189,96577.0,96571.0,0.25680151]
[1763288963281,0.02262,96586.0,96578.0,0.0497]
[1763288963459,0.2396791,96582.0,96578.0,0.0497]
[1763288964078,0.20708227,96580.0,96578.0,0.0497]
[1763288965643,0.20708208,96581.0,96578.0,0.0497]
[1763288965982,0.23819175,96579.0,96578.0,0.0497]
[1763288966187,0.0311074,96579.0,96578.0,0.0497]
[1763288967493,0.23819175,96579.0,96578.0,0.0497]
[1763288971680,0.23270389,96579.0,96578.0,0.0497]
[1763288973470,0.02561954,96579.0,96578.0,0.0497]
[1763288980183,0.04633045,96579.0,96578.0,0.0497]
[1763288981468,0.02561954,96579.0,96578.0,0.0497]
[1763288985315,0.045061,96579.0,96578.0,0.0497]
[1763288989808,0.01944146,96579.0,96578.0,0.0497]
[1763288991080,0.04709146,96579.0,96578.0,0.0497]
[1763288993614,0.03102146,96579.0,96578.0,0.0497]
[1763288995617,0.04709146,96579.0,96578.0,0.0497]
[1763288996166,0.03102146,96579.0,96578.0,0.0497]
[1763288996577,0.04709146,96579.0,96578.0,0.0497]
[1763288997242,0.03102146,96579.0,96578.0,0.0497]
[1763289001430,0.04725146,96579.0,96578.0,0.0497]
[1763289001596,0.20710794,96568.0,96567.0,0.09881783]
[1763289001804,0.20710794,96568.0,96567.0,0.14851783]
[1763289002116,0.20710448,96570.0,96567.0,0.09881783]
[1763289002442,0.2070973,96573.0,96572.0,0.0497]
[1763289003612,0.2070973,96573.0,96572.0,0.0507]
[1763289008051,0.20708929,96577.0,96572.0,0.001]
[1763289008253,0.20709078,96576.0,96575.0,0.0497]
[1763289016530,0.21866589,96579.0,96578.0,0.0497]
[1763289016761,0.01944733,96579.0,96578.0,0.0497]
[1763289018159,0.22653168,96579.0,96578.0,0.0497]
[1763289018558,0.01944733,96579.0,96578.0,0.0497]
[1763289018897,0.22653168,96579.0,96578.0,0.0497]
[1763289019884,0.01944733,96579.0,96578.0,0.0497]
[1763289020091,0.2070813,96581.0,96574.0,0.20709329]
[1763289020325,0.2070865,96578.0,96577.0,0.0497]
[1763289020500,0.22653383,96578.0,96577.0,0.0497]
[1763289023306,0.24168383,96578.0,96577.0,0.0497]
[1763289024148,0.20712938,96559.0,96550.0,0.09881783]
[1763289024363,0.20712938,96559.0,96558.0,0.0497]
[1763289024990,0.23375938,96559.0,96558.0,0.0497]
[1763289025879,0.26487443,96559.0,96558.0,0.0497]
[1763289027378,0.20717465,96537.0,96536.0,0.0497]
[1763289028591,0.20717465,96537.0,96536.0,0.0507]
[1763289029019,0.20717465,96537.0,96536.0,0.0517]
[1763289030157,0.20716914,96540.0,96539.0,0.0497]
[1763289030962,0.20716225,96543.0,96542.0,0.0497]
[1763289032265,0.20716225,96543.0,96542.0,0.0507]
[1763289033604,0.20716225,96543.0,96542.0,0.0497]
[1763289033842,0.24975629,96545.0,96535.0,0.09881783]
[1763289033843,0.03111744,96545.0,96544.0,0.0497]
[1763289034016,0.02071091,96554.0,96550.0,0.0497]
[1763289034377,0.03219091,96551.0,96550.0,0.0497]
[1763289035444,0.05290182,96551.0,96550.0,0.0497]
[1763289037692,0.06878182,96551.0,96550.0,0.0497]
[1763289037900,0.05290182,96551.0,96550.0,0.0497]
[1763289038463,0.06878182,96551.0,96550.0,0.0497]
[1763289039361,0.05290182,96551.0,96550.0,0.0497]
[1763289039889,0.26004623,96551.0,96550.0,0.0497]
[1763289040094,0.25521532,96551.0,96550.0,0.0497]
[1763289043660,0.25521532,96551.0,96550.0,0.0495]
[1763289049274,0.27459741,96551.0,96550.0,0.0495]
[1763289052991,0.27462424,96551.0,96550.0,0.0495]
[1763289053741,0.06747983,96551.0,96530.0,0.0004]
[1763289053943,0.20715513,96546.0,96545.0,0.0495]
[1763289054158,0.22656405,96546.0,96545.0,0.0495]
[1763289054369,0.27356436,96546.0,96545.0,0.0495]
[1763289060681,0.20718732,96531.0,96530.0,0.0499]
[1763289060862,0.25431624,96531.0,96530.0,0.0499]
[1763289061085,0.01940892,96531.0,96530.0,0.0004]
[1763289061301,0.01184,96591.0,96568.0,0.0495]
[1763289061521,0.01184,96591.0,96560.0,0.01035625]
[1763289061522,0.04014519,96590.0,96570.0,0.23928924]
[1763289061737,0.20707114,96586.0,96585.0,0.0495]
[1763289061971,0.20707673,96583.0,96563.0,0.323]
[1763289062180,0.04014519,96582.0,96581.0,0.0495]
[1763289062411,0.24722417,96582.0,96581.0,0.04936778]
[1763289062589,0.22651326,96582.0,96581.0,0.04936778]
[1763289063233,0.20707898,96582.0,96581.0,0.04936778]
[1763289063470,0.21743846,96580.0,96542.0,0.20716175]
[1763289063674,0.20713379,96556.0,96555.0,0.04936778]
[1763289063873,0.20711866,96565.0,96543.0,0.09881783]
[1763289064092,0.02071091,96564.0,96563.0,0.04936778]
[1763289064288,0.23822272,96566.0,96565.0,0.04936778]
[1763289066469,0.03111018,96566.0,96565.0,0.04936778]
[1763289068284,0.03111018,96566.0,96565.0,0.0486007]
[1763289068580,0.23822374,96566.0,96565.0,0.0496007]
[1763289068812,0.03111018,96566.0,96565.0,0.0496007]
[1763289071350,0.0114,96584.0,96565.0,0.20711276]
[1763289071583,0.20709369,96575.0,96574.0,0.0496007]
[1763289072401,0.23820322,96575.0,96574.0,0.0496007]
[1763289072584,0.03110953,96575.0,96574.0,0.0496007]
[1763289072799,0.20708702,96578.0,96569.0,0.20710499]
[1763289073003,0.20708702,96578.0,96577.0,0.0496007]
[1763289073241,0.21743671,96580.0,96579.0,0.0496007]
[1763289073790,0.24854315,96580.0,96579.0,0.0496007]
[1763289076199,0.03110644,96580.0,96579.0,0.0496007]
[1763289076389,0.20707036,96586.0,96580.0,0.20708221]
[1763289076567,0.03110421,96587.0,96581.0,0.20707793]
[1763289076764,0.23817355,96587.0,96586.0,0.0496007]
[1763289076976,0.20706934,96587.0,96586.0,0.0496007]
[1763289077376,0.20705904,96591.0,96587.0,0.0496007]
[1763289077592,0.20705904,96591.0,96578.0,0.09881783]
[1763289077593,0.01187,96601.0,96592.0,0.0496007]
[1763289077763,0.03110421,96589.0,96588.0,0.0496007]
[1763289078165,0.20705862,96592.0,96591.0,0.0496007]
[1763289078583,0.20705648,96592.0,96585.0,0.20706952]
[1763289078715,0.20705648,96592.0,96591.0,0.0496007]
[1763289079680,0.20708103,96581.0,96580.0,0.0496007]
[1763289080090,0.20707744,96583.0,96582.0,0.0496007]
[1763289080500,0.21894744,96583.0,96582.0,0.0496007]
[1763289080709,0.20709621,96574.0,96560.0,0.01035625]
[1763289080931,0.20709621,96574.0,96573.0,0.14841853]
[1763289081265,0.20709507,96574.0,96573.0,0.09881783]
[1763289081494,0.2070871,96578.0,96573.0,0.09881783]
[1763289081702,0.2070871,96578.0,96577.0,0.0496007]
[1763289081903,0.2070871,96578.0,96577.0,0.05016247]
[1763289083109,0.20708225,96580.0,96579.0,0.0496007]
[1763289084856,0.20709078,96576.0,96575.0,0.09881783]
[1763289085065,0.20709078,96576.0,96575.0,0.0496007]
[1763289086201,0.03110376,96583.0,96570.0,0.20710327]
[1763289086411,0.23818012,96583.0,96582.0,0.0496007]
[1763289088396,0.03110376,96583.0,96582.0,0.0496007]
[1763289088614,0.20707792,96582.0,96581.0,0.0496007]
[1763289089722,0.22304792,96582.0,96581.0,0.0496007]
[1763289091200,0.24244539,96582.0,96581.0,0.0496007]
[1763289091941,0.22647539,96582.0,96581.0,0.0496007]
[1763289094020,0.22647539,96582.0,96581.0,0.05005479]
[1763289096384,0.01939747,96582.0,96581.0,0.05005479]
[1763289096588,0.2070711,96586.0,96581.0,0.00045409]
[1763289096765,0.03110376,96584.0,96583.0,0.0496007]
[1763289096977,0.05050726,96584.0,96583.0,0.0496007]
[1763289097401,0.0194035,96584.0,96583.0,0.05000095]
[1763289097603,0.0194035,96584.0,96583.0,0.00040025]
[1763289097809,0.07122029,96585.0,96583.0,0.00040025]
[1763289098024,0.01940562,96584.0,96583.0,0.0496007]
[1763289098835,0.21955315,96594.0,96582.0,0.20707615]
[1763289099041,0.03110376,96587.0,96586.0,0.0496007]
[1763289099251,0.05051108,96587.0,96586.0,0.0496007]
[1763289103352,0.05052511,96587.0,96586.0,0.0496007]
[1763289105543,0.07123602,96587.0,96586.0,0.0496007]
[1763289106911,0.25759231,96587.0,96586.0,0.0496007]
[1763289107112,0.25759231,96587.0,96586.0,0.0493807]
[1763289109089,0.25759231,96587.0,96586.0,0.0497002]
[1763289109303,0.05052511,96587.0,96586.0,0.0497002]
[1763289109517,0.25759231,96587.0,96586.0,0.0497002]
[1763289110590,0.01942135,96587.0,96586.0,0.0497002]
[1763289110818,0.20706065,96591.0,96589.0,0.0493807]
[1763289110947,0.0194335,96590.0,96589.0,0.0493807]
[1763289111139,0.0194335,96590.0,96589.0,0.04961946]
[1763289111360,0.04014441,96590.0,96589.0,0.04961946]
[1763289112757,0.05595441,96590.0,96589.0,0.00023876]
[1763289112974,0.05595441,96590.0,96589.0,0.04961946]
[1763289121796,0.05595441,96590.0,96589.0,0.00023876]
[1763289122791,0.08706046,96590.0,96589.0,0.00023876]
[1763289124918,0.07051393,96590.0,96589.0,0.00023876]
[1763289125122,0.08696393,96590.0,96589.0,0.00023876]
[1763289125714,0.08696393,96590.0,96589.0,0.04961946]
[1763289126112,0.07051393,96590.0,96589.0,0.04961946]
[1763289126487,0.01869697,96590.0,96589.0,0.04961946]
[1763289128079,0.03940788,96590.0,96589.0,0.04961946]
[1763289128496,0.01869697,96590.0,96589.0,0.04961946]
[1763289129046,0.20705628,96593.0,96592.0,0.0493807]
[1763289129400,0.20705241,96594.0,96592.0,0.0493807]
[1763289129637,0.20705662,96592.0,96591.0,0.0493807]
[1763289130439,0.03110173,96599.0,96592.0,0.0493807]
[1763289130643,0.2070563,96593.0,96592.0,0.0493807]
[1763289130847,0.03110173,96599.0,96589.0,0.00023876]
[1763289130848,0.20705005,96595.0,96594.0,0.0493807]
[1763289131047,0.20705799,96592.0,96589.0,0.09905659]
[1763289131204,0.20705799,96592.0,96591.0,0.0493807]
[1763289131641,0.20705005,96595.0,96594.0,0.0493807]
[1763289132808,0.20704571,96598.0,96589.0,0.09905659]
[1763289132982,0.001,96595.0,96594.0,0.0493807]
[1763289133607,0.20704575,96598.0,96594.0,0.0493807]
[1763289133960,0.20804575,96598.0,96597.0,0.0493807]
[1763289135151,0.22253575,96598.0,96597.0,0.0493807]
[1763289136124,0.22353575,96598.0,96597.0,0.0493807]
[1763289136968,0.24295445,96598.0,96597.0,0.0493807]
[1763289140118,0.22746445,96598.0,96597.0,0.0493807]
[1763289144149,0.0204187,96598.0,96597.0,0.0493807]
[1763289145019,0.001,96598.0,96597.0,0.0493807]
[1763289145648,0.20804362,96598.0,96597.0,0.0493807]
[1763289146063,0.001,96598.0,96597.0,0.0493807]
[1763289153796,0.001,96598.0,96597.0,0.25642646]
[1763289154002,0.001,96598.0,96597.0,0.0493807]
[1763289160178,0.20804362,96598.0,96597.0,0.0493807]
[1763289160411,0.001,96598.0,96597.0,0.0493807]
[1763289162643,0.001,96598.0,96597.0,0.07008527]
[1763289163904,0.00045164,96600.0,96599.0,0.0493807]
[1763289169617,0.00045164,96600.0,96599.0,0.07008484]
[1763289180912,0.00045164,96600.0,96599.0,0.07108484]
[1763289185665,0.00045164,96600.0,96599.0,0.19281904]
[1763289187269,0.00045164,96600.0,96599.0,0.1721149]
[1763289191458,0.00045164,96600.0,96599.0,0.0503807]
[1763289191901,0.00045164,96600.0,96599.0,0.06951641]
[1763289192267,0.00045164,96600.0,96599.0,0.0503807]
[1763289192468,0.00045164,96600.0,96599.0,0.07108484]
[1763289192832,0.00045164,96600.0,96599.0,0.0503807]
[1763289193074,0.00045164,96600.0,96599.0,0.07108484]
[1763289205534,0.00045164,96600.0,96599.0,0.0503807]
[1763289206417,0.22386097,96600.0,96599.0,0.0503807]
[1763289206616,0.27438779,96600.0,96599.0,0.0503807]
[1763289206943,0.27438779,96600.0,96599.0,0.001]
[1763289207138,0.20704362,96598.0,96597.0,0.0493807]
[1763289207337,0.24284099,96598.0,96597.0,0.0493807]
[1763289207746,0.27394333,96598.0,96597.0,0.0493807]
[1763289209890,0.20706077,96590.0,96574.0,0.09881783]
[1763289210175,0.23549077,96590.0,96589.0,0.04961946]
[1763289210593,0.26659437,96590.0,96589.0,0.04961946]
[1763289213505,0.32939452,96590.0,96589.0,0.00023876]
[1763289213715,0.33039452,96590.0,96589.0,0.00023876]
[1763289214783,0.65339452,96590.0,96589.0,0.00023876]
[1763289221367,0.65339452,96590.0,96549.0,0.0493807]
[1763289221368,0.20714819,96550.0,96549.0,0.0493807]
[1763289221571,0.23475819,96550.0,96549.0,0.0493807]
[1763289221772,0.02761,96550.0,96549.0,0.0493807]
[1763289222193,0.01238,96550.0,96549.0,0.0493807]
[1763289222454,0.01238,96550.0,96549.0,0.0503807]
[1763289222607,0.01238,96550.0,96549.0,0.05151602]
[1763289223972,0.02761,96550.0,96549.0,0.05151602]
[1763289224882,0.02761,96550.0,96549.0,0.00213532]
[1763289225097,0.02761,96550.0,96549.0,0.05151602]
[1763289225223,0.05872331,96550.0,96549.0,0.05151602]
[1763289225688,0.05872331,96550.0,96549.0,0.05051602]
[1763289226064,0.05872331,96550.0,96549.0,0.04951602]
[1763289227004,0.05872331,96550.0,96549.0,0.05059306]
[1763289230422,0.05872331,96550.0,96549.0,0.25774176]
[1763289230821,0.05872331,96550.0,96549.0,0.05059306]
[1763289231004,0.02761,96550.0,96549.0,0.05059306]
[1763289233769,0.01238,96550.0,96549.0,0.05059306]
[1763289233930,0.02761,96550.0,96549.0,0.05059306]
[1763289235396,0.04697337,96550.0,96549.0,0.05059306]
[1763289236159,0.04697337,96550.0,96549.0,0.25774176]
[1763289236368,0.03174337,96550.0,96549.0,0.25774176]
[1763289237095,0.03174337,96550.0,96549.0,0.05059306]
[1763289237769,0.04697337,96550.0,96549.0,0.05059306]
[1763289237960,0.25411992,96550.0,96549.0,0.05059306]
[1763289239720,0.04697337,96550.0,96549.0,0.05059306]
[1763289239926,0.06768428,96550.0,96549.0,0.05059306]
[1763289240664,0.06768428,96550.0,96549.0,0.25774176]
[1763289240862,0.04697337,96550.0,96549.0,0.25774176]
[1763289241419,0.03174337,96550.0,96549.0,0.25774176]
[1763289242668,0.03174337,96550.0,96549.0,0.05059306]
[1763289242880,0.03174337,96550.0,96549.0,0.25774176]
[1763289243723,0.03174337,96550.0,96549.0,0.05059306]
[1763289243951,0.01936337,96550.0,96549.0,0.05059306]
[1763289246601,0.01936337,96550.0,96549.0,0.05159306]
[1763289247424,0.02071091,96567.0,96566.0,0.0493807]
[1763289247675,0.0401369,96567.0,96566.0,0.25649293]
[1763289247820,0.0401369,96567.0,96566.0,0.25711215]
[1763289249409,0.01942599,96567.0,96566.0,0.25711215]
[1763289252785,0.03110666,96582.0,96581.0,0.0493807]
[1763289252958,0.01941212,96582.0,96581.0,0.14819853]
[1763289253955,0.01945727,96582.0,96581.0,0.14819853]
[1763289255102,0.01944274,96582.0,96581.0,0.14819853]
[1763289255301,4.515e-05,96582.0,96581.0,0.14819853]
[1763289255845,0.01944274,96582.0,96581.0,0.35527859]
[1763289256266,4.515e-05,96582.0,96581.0,0.35527859]